bitfinex-derivatives/quotes_SOLF0:USTF0_20251020
["timestamp","ask_amount","ask_price","bid_price","bid_amount"]
[1760988698218,2.88,188.19,188.16,2.94]
[1760988698717,7.6616,188.19,188.15,4.99514151]
[1760988698917,2.88,188.18,188.15,2.05514151]
[1760988700012,2.88,188.18,188.15,4.99514151]
[1760988700212,2.88,188.18,188.15,2.94]
[1760988701415,7.6616,188.19,188.15,2.94]
[1760988702815,7.6616,188.19,188.15,4.99514151]
[1760988703009,7.6616,188.19,188.16,2.94]
[1760988704915,2.88,188.18,188.15,2.05514151]
[1760988705118,2.88,188.18,188.15,4.99514151]
[1760988706126,2.88,188.18,188.15,2.94]
[1760988713733,2.05514151,188.22,188.11,4.93185551]
[1760988714028,2.88,188.19,188.11,2.94]
[1760988714231,2.88,188.19,188.12,2.94]
[1760988714628,4.7818,188.18,188.13,2.94]
[1760988714833,2.88,188.17,188.13,2.94]
[1760988715835,2.88,188.17,188.12,7.7231]
[1760988716032,2.88,188.17,188.13,2.94]
[1760988716235,4.7818,188.18,188.13,2.94]
[1760988716427,7.6618,188.18,188.13,2.94]
[1760988717739,2.81,188.17,188.13,2.94]
[1760988717931,4.7818,188.18,188.15,2.89]
[1760988717932,7.5918,188.18,188.15,2.89]
[1760988718540,2.81,188.17,188.15,2.89]
[1760988719740,4.7818,188.18,188.15,2.89]
[1760988719942,7.5918,188.18,188.15,2.89]
[1760988720242,2.81,188.18,188.15,2.89]
[1760988720843,2.81,188.2,188.15,2.89]
[1760988721041,4.86514151,188.24,188.16,2.89]
[1760988721230,2.81,188.24,188.16,2.89]
[1760988721636,2.81,188.24,188.17,2.89]
[1760988722943,4.7805,188.23,188.17,2.89]
[1760988723142,7.5905,188.23,188.17,2.89]
[1760988724037,2.81,188.23,188.18,2.89]
[1760988724238,4.86514151,188.25,188.18,2.89]
[1760988724438,2.81,188.23,188.18,2.89]
[1760988724745,2.81,188.23,188.16,12.62583432]
[1760988724945,2.81,188.23,188.17,2.89]
[1760988725741,2.81,188.22,188.17,2.89]
[1760988727041,2.81,188.21,188.17,2.89]
[1760988727739,2.81,188.2,188.17,2.89]
[1760988727943,2.81,188.2,188.16,2.89]
[1760988728750,7.5913,188.2,188.16,2.89]
[1760988728951,2.81,188.19,188.16,2.89]
[1760988731351,4.7813,188.2,188.16,2.89]
[1760988731549,7.5913,188.2,188.16,2.89]
[1760988731850,2.81,188.19,188.16,2.89]
[1760988733350,7.5913,188.2,188.16,2.89]
[1760988734753,2.81,188.2,188.16,4.782]
[1760988734954,7.4308,188.22,188.17,2.71]
[1760988735157,2.65,188.21,188.17,2.71]
[1760988735941,2.65,188.21,188.17,7.4918]
[1760988736146,2.65,188.21,188.18,2.71]
[1760988739358,2.65,188.2,188.16,4.95634395]
[1760988739551,2.65,188.2,188.15,4.95634395]
[1760988739857,2.65,188.2,188.14,4.95634395]
[1760988741051,2.65,188.18,188.14,7.66634395]
[1760988741655,2.65,188.18,188.13,9.73924395]
[1760988741859,2.65,188.16,188.13,4.95634395]
[1760988742651,2.65,188.15,188.12,4.95634395]
[1760988743062,2.65,188.13,188.11,4.95634395]
[1760988743259,2.65,188.13,188.09,4.95634395]
[1760988743658,2.65,188.13,188.09,7.66634395]
[1760988744162,4.7825,188.15,188.1,2.71]
[1760988744361,2.65,188.18,188.1,2.71]
[1760988744560,2.65,188.18,188.11,2.71]
[1760988745962,4.7821,188.17,188.11,2.71]
[1760988746265,7.4321,188.17,188.11,2.71]
[1760988747258,7.6921,188.17,188.11,2.71]
[1760988748760,7.6921,188.17,188.11,4.7833]
[1760988748956,7.6921,188.17,188.12,2.67]
[1760988750569,2.91,188.16,188.12,2.67]
[1760988754677,7.6916,188.19,188.13,4.7828]
[1760988754974,4.7816,188.19,188.15,2.67]
[1760988755177,31.39,188.22,188.15,2.67]
[1760988755379,4.781,188.21,188.16,2.67]
[1760988755879,31.39,188.22,188.18,2.67]
[1760988756077,31.39,188.22,188.19,7.74652774]
[1760988756279,28.48,188.22,188.2,5.07652774]
[1760988756476,2.91,188.21,188.16,2.67]
[1760988756680,2.91,188.21,188.18,2.67]
[1760988756880,2.91,188.21,188.19,5.07605043]
[1760988757082,2.91,188.21,188.2,5.07605043]
[1760988758488,28.48,188.22,188.2,7.74605043]
[1760988758678,31.39,188.22,188.21,5.07605043]
[1760988759079,2.91,188.22,188.21,5.07605043]
[1760988760585,4.7805,188.23,188.21,5.07605043]
[1760988760783,4.7805,188.23,188.18,2.67]
[1760988760983,7.6905,188.23,188.2,2.67]
[1760988761185,2.91,188.22,188.21,5.07678082]
[1760988769191,3.2079335,188.28,188.21,5.07678082]
[1760988769391,7.69,188.25,188.22,7.74887313]
[1760988769592,7.69,188.25,188.23,5.07887313]
[1760988769786,7.69,188.25,188.22,2.67]
[1760988769986,7.69,188.25,188.23,5.07801182]
[1760988770188,7.69,188.25,188.22,2.67]
[1760988770395,7.69,188.25,188.23,5.07749651]
[1760988770594,7.69,188.25,188.22,2.67]
[1760988770793,7.69,188.25,188.23,5.07749651]
[1760988770996,7.69,188.25,188.22,2.67]
[1760988771187,7.69,188.25,188.23,5.07749981]
[1760988771387,7.69,188.25,188.22,2.67]
[1760988771587,7.69,188.25,188.23,5.07720586]
[1760988771786,7.69,188.25,188.22,2.67]
[1760988772094,7.69,188.25,188.23,5.07720865]
[1760988772292,7.69,188.25,188.22,2.67]
[1760988772489,7.69,188.25,188.23,5.07692025]
[1760988772688,7.69,188.25,188.22,2.67]
[1760988772895,7.69,188.25,188.23,5.07691531]
[1760988773086,7.69,188.25,188.22,2.67]
[1760988773287,7.69,188.25,188.23,5.0769186]
[1760988773483,7.69,188.25,188.22,2.67]
[1760988773690,7.69,188.25,188.23,5.07627331]
[1760988773886,2.91,188.24,188.2,2.67]
[1760988774087,2.91,188.24,188.21,7.74627319]
[1760988774295,2.91,188.24,188.22,5.07627319]
[1760988774490,2.91,188.24,188.23,5.07627319]
[1760988774694,7.69,188.25,188.23,5.07627319]
[1760988774891,7.69,188.25,188.21,2.67]
[1760988775086,7.69,188.25,188.22,7.74577531]
[1760988775283,7.69,188.25,188.23,5.07577531]
[1760988775487,7.69,188.25,188.22,2.67]
[1760988775688,7.69,188.25,188.23,5.07529808]
[1760988775890,7.69,188.25,188.22,2.67]
[1760988776197,7.69,188.25,188.23,5.07529605]
[1760988776492,7.69,188.25,188.22,2.67]
[1760988776798,7.69,188.25,188.23,5.0746354]
[1760988776997,7.69,188.25,188.21,2.67]
[1760988777198,7.69,188.25,188.22,7.74433629]
[1760988777398,7.69,188.25,188.23,5.07433629]
[1760988777599,7.69,188.25,188.22,2.67]
[1760988777794,7.69,188.25,188.23,5.07398969]
[1760988777993,7.69,188.25,188.22,2.67]
[1760988778194,7.69,188.25,188.23,5.07270851]
[1760988778395,7.69,188.25,188.22,2.67]
[1760988778693,7.69,188.25,188.23,5.0719844]
[1760988778894,7.69,188.25,188.22,2.67]
[1760988779093,7.69,188.25,188.23,5.07225432]
[1760988779289,7.69,188.25,188.22,2.67]
[1760988779495,7.5895,188.27,188.24,2.85]
[1760988779695,2.81,188.26,188.24,2.85]
[1760988779999,7.5897,188.26,188.2,2.85]
[1760988780301,2.81,188.25,188.22,2.85]
[1760988780498,2.81,188.25,188.23,5.07166631]
[1760988780801,2.81,188.25,188.22,2.85]
[1760988780996,10.7972335,188.28,188.23,7.92141675]
[1760988781300,2.81,188.27,188.24,2.85]
[1760988781607,39.569,188.29,188.24,2.85]
[1760988781894,34.79,188.29,188.26,2.85]
[1760988782094,2.81,188.28,188.26,2.85]
[1760988782495,2.81,188.28,188.23,2.85]
[1760988782797,2.81,188.28,188.25,2.85]
[1760988787503,44.0,188.34,188.25,2.85]
[1760988787693,2.81,188.33,188.26,5.06151049]
[1760988788008,2.81,188.3,188.22,2.85]
[1760988788307,7.5887,188.3,188.24,2.85]
[1760988788503,7.5887,188.3,188.22,4.7805]
[1760988788504,2.81,188.29,188.25,7.91156935]
[1760988788703,2.81,188.29,188.26,5.06156935]
[1760988788909,2.81,188.29,188.25,2.85]
[1760988789098,2.81,188.29,188.26,5.0620112]
[1760988789299,2.81,188.29,188.25,2.85]
[1760988789606,2.81,188.29,188.26,5.0626755]
[1760988789808,2.81,188.29,188.26,2.85]
[1760988790805,2.81,188.29,188.22,4.7805]
[1760988791010,2.81,188.27,188.23,5.0686502]
[1760988791212,3.2079335,188.25,188.16,4.95634395]
[1760988791508,4.7806,188.23,188.18,2.85]
[1760988791805,7.5906,188.23,188.19,7.92371052]
[1760988792005,7.5906,188.23,188.19,2.85]
[1760988792404,4.7806,188.23,188.19,2.85]
[1760988793615,7.5906,188.23,188.19,2.85]
[1760988793815,2.81,188.22,188.19,2.85]
[1760988794017,2.81,188.21,188.16,2.85]
[1760988794616,4.7803,188.24,188.18,2.85]
[1760988795014,7.5903,188.24,188.18,2.85]
[1760988796618,2.7,188.22,188.18,2.85]
[1760988798822,4.75364155,188.2,188.16,7.64634395]
[1760988799422,2.05364155,188.18,188.16,7.64634395]
[1760988799721,4.75364155,188.18,188.15,2.69]
[1760988799919,2.05364155,188.16,188.14,4.95634395]
[1760988800220,2.05364155,188.16,188.14,2.69]
[1760988800919,2.05364155,188.2,188.15,2.69]
[1760988801215,2.7,188.19,188.15,7.4723]
[1760988801429,2.7,188.19,188.16,2.69]
[1760988801816,2.05364155,188.2,188.16,2.69]
[1760988802018,4.75364155,188.2,188.17,5.08126982]
[1760988802218,4.75364155,188.2,188.18,5.08126982]
[1760988802520,4.75364155,188.2,188.19,5.08126982]
[1760988804324,2.7,188.2,188.19,5.08126982]
[1760988805012,2.7,188.21,188.19,5.08126982]
[1760988805211,2.7,188.21,188.2,5.08126982]
[1760988806224,2.7,188.21,188.16,2.69]
[1760988806415,2.7,188.21,188.17,5.07978261]
[1760988806612,2.7,188.21,188.18,5.07978261]
[1760988806818,2.7,188.21,188.19,5.07978261]
[1760988807015,2.7,188.21,188.17,2.69]
[1760988807216,2.7,188.21,188.18,5.07978302]
[1760988807420,2.7,188.21,188.19,5.07978302]
[1760988807618,2.7,188.21,188.17,2.69]
[1760988807820,2.7,188.21,188.18,5.07949738]
[1760988808020,2.7,188.21,188.19,5.07949738]
[1760988808228,2.7,188.21,188.17,2.69]
[1760988808527,2.05364155,188.2,188.18,5.0792858]
[1760988808829,2.75,188.19,188.14,2.7]
[1760988809026,2.75,188.19,188.15,2.7]
[1760988809727,7.5315,188.19,188.15,2.7]
[1760988811030,2.75,188.18,188.15,2.7]
[1760988812026,7.5317,188.18,188.15,2.7]
[1760988814227,4.7817,188.18,188.15,2.7]
[1760988814632,4.7812,188.2,188.15,2.7]
[1760988814833,7.5312,188.2,188.15,2.7]
[1760988815132,7.5312,188.2,188.13,4.7828]
[1760988815133,2.75,188.25,188.17,2.7]
[1760988815335,4.80364155,188.27,188.19,2.7]
[1760988815736,2.75,188.27,188.19,2.7]
[1760988815929,2.75,188.27,188.2,2.7]
[1760988816531,7.5295,188.27,188.21,2.7]
[1760988817930,2.75,188.27,188.21,2.7]
[1760988819724,2.75,188.26,188.18,12.43784395]
[1760988820137,2.05364155,188.25,188.18,12.43784395]
[1760988820335,4.80364155,188.25,188.19,2.7]
[1760988820730,4.80364155,188.21,188.17,7.65634395]
[1760988820930,2.75,188.2,188.17,2.7]
[1760988821732,2.05364155,188.19,188.14,7.65634395]
[1760988822031,4.80364155,188.19,188.14,2.7]
[1760988823140,2.05364155,188.21,188.15,2.7]
[1760988823526,4.80364155,188.21,188.15,2.7]
[1760988823944,9.58464155,188.21,188.15,7.4822]
[1760988824252,9.58464155,188.21,188.16,2.7]
[1760988824550,2.05364155,188.23,188.16,2.7]
[1760988824850,4.80364155,188.23,188.16,2.7]
[1760988825351,4.80364155,188.23,188.18,2.7]
[1760988826545,2.05364155,188.23,188.19,2.7]
[1760988826749,2.05364155,188.25,188.19,2.7]
[1760988826946,2.75,188.26,188.19,2.7]
[1760988827742,2.75,188.26,188.2,7.481]
[1760988827947,2.75,188.26,188.21,2.7]
[1760988828947,2.75,188.26,188.21,4.7808]
[1760988829150,2.75,188.26,188.22,2.7]
[1760988829347,2.05364155,188.27,188.22,2.7]
[1760988829746,2.05364155,188.27,188.22,7.4805]
[1760988829951,2.05364155,188.27,188.23,2.7]
[1760988830149,2.75,188.26,188.23,2.7]
[1760988831348,2.75,188.26,188.2,9.73744395]
[1760988831548,2.75,188.26,188.2,7.4811]
[1760988832049,2.05364155,188.25,188.2,7.4811]
[1760988832249,2.75,188.24,188.2,7.4811]
[1760988832451,2.75,188.24,188.21,2.7]
[1760988833551,2.05364155,188.25,188.21,2.7]
[1760988833753,9.58304155,188.27,188.21,2.7]
[1760988835358,2.75,188.26,188.21,2.7]
[1760988841958,2.75,188.26,188.22,2.88]
[1760988842159,9.56254155,188.29,188.22,2.88]
[1760988842952,9.56254155,188.29,188.22,4.7805]
[1760988843157,9.56254155,188.29,188.23,2.88]
[1760988843659,4.78364155,188.29,188.24,2.88]
[1760988844161,2.05364155,188.31,188.24,2.88]
[1760988844360,2.05364155,188.31,188.21,4.95634395]
[1760988844361,2.73,188.3,188.25,2.88]
[1760988844665,4.78364155,188.33,188.25,2.88]
[1760988845158,2.73,188.32,188.27,4.7792]
[1760988845360,2.73,188.32,188.27,7.6592]
[1760988845861,4.7782,188.32,188.25,4.7797]
[1760988846061,4.78364155,188.31,188.25,4.7797]
[1760988846564,4.78364155,188.31,188.26,4.7795]
[1760988846769,2.73,188.3,188.27,2.88]
[1760988849064,5.70216239,188.34,188.27,2.88]
[1760988849258,7.5077,188.34,188.28,7.659]
[1760988849963,2.73,188.33,188.28,7.659]
[1760988850169,2.73,188.32,188.26,4.7794]
[1760988850970,2.73,188.31,188.26,4.7794]
[1760988851365,2.73,188.31,188.27,2.88]
[1760988852166,2.05364155,188.31,188.27,2.88]
[1760988852364,2.73,188.3,188.27,2.88]
[1760988852564,2.73,188.3,188.24,7.66]
[1760988854368,7.5087,188.3,188.24,7.66]
[1760988857869,2.05364155,188.33,188.27,2.94]
[1760988858074,2.92,188.34,188.27,2.94]
[1760988858579,2.92,188.34,188.29,2.94]
[1760988858763,2.92,188.34,188.3,8.03007336]
[1760988858967,2.92,188.34,188.31,5.09007336]
[1760988859175,2.92,188.34,188.3,2.94]
[1760988859477,2.92,188.34,188.31,5.09084819]
[1760988859677,2.92,188.34,188.3,2.94]
[1760988859867,2.92,188.34,188.31,5.09024123]
[1760988860069,2.92,188.34,188.3,2.94]
[1760988860267,2.92,188.34,188.31,5.09005361]
[1760988860473,2.92,188.34,188.3,2.94]
[1760988860669,2.92,188.34,188.31,5.08972662]
[1760988860871,2.92,188.34,188.3,2.94]
[1760988861071,2.92,188.34,188.31,5.08982676]
[1760988861272,2.92,188.34,188.3,2.94]
[1760988861469,2.92,188.34,188.31,5.08908404]
[1760988861776,2.92,188.37,188.3,2.94]
[1760988861971,2.92,188.37,188.31,5.08904601]
[1760988862178,2.92,188.37,188.3,2.94]
[1760988862382,2.92,188.35,188.31,8.02873678]
[1760988862581,2.92,188.35,188.31,2.94]
[1760988867775,2.92,188.35,188.32,7.94640848]
[1760988867975,2.92,188.35,188.32,2.86]
[1760988868980,2.92,188.35,188.33,5.08642451]
[1760988869171,2.92,188.35,188.32,2.86]
[1760988869372,2.92,188.35,188.33,5.08784855]
[1760988869573,2.92,188.35,188.32,2.86]
[1760988869871,2.92,188.35,188.33,5.0868742]
[1760988870072,2.92,188.35,188.32,2.86]
[1760988870271,2.92,188.35,188.33,5.08707856]
[1760988870471,2.92,188.35,188.32,2.86]
[1760988870675,3.7941187,188.41,188.34,2.86]
[1760988870978,2.87,188.4,188.35,7.94580842]
[1760988871186,2.87,188.4,188.36,5.08580842]
[1760988871375,2.87,188.4,188.32,2.86]
[1760988871575,7.6462,188.4,188.33,7.94582118]
[1760988871879,2.87,188.39,188.34,7.94582118]
[1760988872081,2.87,188.39,188.35,7.94582118]
[1760988872277,2.87,188.39,188.35,2.86]
[1760988872480,7.6464,188.39,188.35,2.86]
[1760988872777,2.87,188.38,188.35,2.86]
[1760988873378,2.87,188.38,188.31,4.7782]
[1760988873575,2.87,188.37,188.32,5.08509969]
[1760988873781,2.87,188.37,188.3,2.86]
[1760988873980,2.87,188.37,188.32,2.86]
[1760988874574,2.87,188.37,188.3,4.7784]
[1760988874774,2.87,188.37,188.31,5.08697051]
[1760988874975,2.87,188.36,188.32,5.08697051]
[1760988875181,2.87,188.36,188.29,2.86]
[1760988875383,2.87,188.36,188.3,5.08749739]
[1760988875685,2.87,188.36,188.31,5.08749739]
[1760988875884,2.87,188.34,188.26,12.58440687]
[1760988876081,2.87,188.34,188.27,5.08763744]
[1760988876276,2.87,188.34,188.28,7.94763744]
[1760988876590,2.87,188.34,188.29,7.94763744]
[1760988876885,2.87,188.34,188.3,5.08763744]
[1760988877074,2.87,188.34,188.31,5.08763744]
[1760988877275,2.87,188.34,188.32,5.08763744]
[1760988877579,2.87,188.34,188.27,4.7792]
[1760988877774,2.87,188.34,188.28,5.08986131]
[1760988877976,2.87,188.34,188.29,5.08986131]
[1760988878185,2.87,188.34,188.3,5.08986131]
[1760988878381,2.87,188.34,188.27,7.6392]
[1760988878686,2.87,188.34,188.28,5.09087169]
[1760988878983,2.87,188.34,188.29,5.09087169]
[1760988879280,2.87,188.34,188.3,7.95087169]
[1760988879485,0.9241187,188.41,188.27,4.7792]
[1760988879486,2.87,188.39,188.32,2.86]
[1760988879687,2.87,188.39,188.34,2.86]
[1760988879875,2.87,188.39,188.36,2.86]
[1760988880384,2.87,188.4,188.33,2.86]
[1760988880581,2.87,188.4,188.34,5.0870037]
[1760988880880,2.87,188.4,188.35,7.9470037]
[1760988881078,2.87,188.4,188.35,2.86]
[1760988882181,2.87,188.4,188.36,5.0862815]
[1760988882484,2.87,188.4,188.37,7.94598634]
[1760988882685,2.87,188.4,188.34,2.86]
[1760988882885,2.87,188.4,188.35,7.94609775]
[1760988883076,2.87,188.4,188.36,5.08609775]
[1760988883278,2.87,188.4,188.35,2.86]
[1760988883577,2.87,188.4,188.36,5.08576933]
[1760988883773,2.87,188.4,188.35,2.86]
[1760988883978,2.87,188.4,188.36,5.08597403]
[1760988884179,2.87,188.39,188.35,2.86]
[1760988884486,2.87,188.39,188.36,5.08746225]
[1760988884689,2.87,188.39,188.35,2.86]
[1760988884884,2.87,188.39,188.36,5.08801879]
[1760988885085,2.87,188.39,188.32,2.86]
[1760988885287,2.87,188.39,188.33,7.94833502]
[1760988885489,2.87,188.39,188.35,2.86]
[1760988885686,2.87,188.39,188.36,5.08966338]
[1760988885888,2.87,188.39,188.35,2.86]
[1760988886189,2.87,188.39,188.36,5.08936733]
[1760988886389,2.87,188.39,188.35,2.86]
[1760988886582,2.87,188.39,188.36,5.09039027]
[1760988886790,2.87,188.39,188.35,2.86]
[1760988886986,2.87,188.39,188.36,5.09023314]
[1760988887182,2.87,188.39,188.35,2.86]
[1760988887383,2.87,188.39,188.36,5.09023314]
[1760988887582,2.87,188.39,188.35,2.86]
[1760988887795,2.87,188.39,188.36,5.0908155]
[1760988887995,2.87,188.39,188.35,2.86]
[1760988888195,2.87,188.39,188.36,5.0908155]
[1760988888492,2.87,188.39,188.35,2.86]
[1760988888692,2.87,188.39,188.36,5.09119628]
[1760988888893,2.87,188.39,188.35,2.86]
[1760988889094,2.87,188.39,188.36,5.09119474]
[1760988889294,2.87,188.39,188.35,2.86]
[1760988889593,2.87,188.39,188.36,5.0916541]
[1760988889784,2.87,188.39,188.35,2.86]
[1760988889985,2.87,188.39,188.36,5.09193052]
[1760988890185,2.87,188.39,188.35,2.86]
[1760988890391,2.87,188.39,188.36,5.09193216]
[1760988890592,2.87,188.39,188.31,4.94747979]
[1760988890895,0.92395922,188.43,188.24,7.80747979]
[1760988890896,2.87,188.36,188.24,7.80747979]
[1760988891196,9.82544122,188.4,188.25,5.09664169]
[1760988891197,2.87,188.33,188.25,5.09664169]
[1760988891397,2.87,188.33,188.26,5.09664169]
[1760988891588,2.87,188.33,188.27,5.09664169]
[1760988891789,2.87,188.31,188.28,5.09664169]
[1760988891989,2.87,188.31,188.29,5.09664169]
[1760988892297,2.87,188.31,188.24,7.80747979]
[1760988892495,2.87,188.31,188.25,5.09793642]
[1760988892697,2.87,188.31,188.26,7.95793642]
[1760988892898,2.87,188.31,188.27,5.09793642]
[1760988893084,2.87,188.31,188.28,5.09793642]
[1760988893288,2.87,188.31,188.29,5.09793642]
[1760988893600,2.87,188.31,188.26,2.86]
[1760988893801,2.87,188.31,188.27,5.09817356]
[1760988894003,2.87,188.3,188.28,5.09817356]
[1760988894196,2.87,188.3,188.23,2.86]
[1760988894504,2.87,188.3,188.24,5.09900011]
[1760988894691,2.87,188.29,188.25,5.09900011]
[1760988894894,2.87,188.29,188.26,5.09900011]
[1760988895203,43.96,188.35,188.2,2.86]
[1760988895204,2.87,188.27,188.2,2.86]
[1760988895396,2.87,188.27,188.21,5.09774754]
[1760988895592,2.87,188.27,188.22,5.09774754]
[1760988895796,2.87,188.27,188.23,5.09774754]
[1760988896091,2.87,188.27,188.24,5.09774754]
[1760988896299,2.87,188.27,188.25,5.09774754]
[1760988896495,2.87,188.27,188.22,2.86]
[1760988896694,2.87,188.27,188.23,5.09659413]
[1760988896896,2.87,188.27,188.24,5.09659413]
[1760988897199,2.87,188.27,188.25,5.09659413]
[1760988897501,7.4286,188.3,188.22,2.86]
[1760988897797,7.4286,188.3,188.26,2.92]
[1760988898000,4.7786,188.3,188.27,5.09555467]
[1760988898195,2.65,188.29,188.26,2.92]
[1760988898500,2.65,188.29,188.27,5.09436297]
[1760988898704,2.65,188.29,188.26,2.92]
[1760988898899,2.65,188.29,188.27,5.09413849]
[1760988899099,2.65,188.29,188.26,2.92]
[1760988899400,2.65,188.29,188.27,5.09414204]
[1760988899602,2.65,188.29,188.26,2.92]
[1760988899804,2.65,188.29,188.27,5.09375427]
[1760988900104,2.65,188.29,188.26,2.92]
[1760988900299,2.65,188.29,188.27,5.09402247]
[1760988900601,2.65,188.34,188.28,5.09342716]
[1760988900798,2.65,188.34,188.29,5.09342716]
[1760988900987,7.428,188.33,188.25,2.92]
[1760988901187,7.428,188.33,188.26,8.01259843]
[1760988901391,7.428,188.33,188.27,8.01259843]
[1760988901601,7.428,188.33,188.29,2.92]
[1760988901799,4.778,188.33,188.29,2.92]
[1760988901991,2.65,188.32,188.29,2.92]
[1760988902191,47.16380682,188.37,188.29,2.92]
[1760988902192,51.3873,188.36,188.29,2.92]
[1760988902391,51.3873,188.36,188.3,8.01363492]
[1760988902692,51.3873,188.36,188.3,2.92]
[1760988902887,2.65,188.34,188.3,2.92]
[1760988904003,43.96,188.36,188.3,2.92]
[1760988904199,43.96,188.36,188.32,2.92]
[1760988904403,2.65,188.35,188.32,2.92]
[1760988904595,2.65,188.35,188.29,2.92]
[1760988904794,2.65,188.35,188.31,2.92]
[1760988905103,2.65,188.35,188.32,5.0937264]
[1760988905298,2.65,188.35,188.31,2.92]
[1760988905608,2.65,188.35,188.32,5.09407055]
[1760988905905,2.65,188.34,188.31,2.92]
[1760988906202,2.65,188.34,188.27,2.92]
[1760988906394,2.65,188.34,188.28,5.09439522]
[1760988906594,2.65,188.34,188.29,5.09439522]
[1760988906790,2.65,188.34,188.27,2.92]
[1760988906994,2.65,188.32,188.28,5.09425793]
[1760988907199,2.65,188.32,188.29,5.09425793]
[1760988907404,2.65,188.32,188.27,2.92]
[1760988907598,2.65,188.32,188.28,5.09412381]
[1760988907799,2.65,188.32,188.29,5.09412381]
[1760988908103,2.65,188.32,188.27,2.92]
[1760988908295,2.65,188.32,188.28,5.09412381]
[1760988908498,2.65,188.32,188.29,5.09412381]
[1760988908705,2.65,188.32,188.27,2.92]
[1760988908894,2.65,188.32,188.28,5.09399445]
[1760988909098,43.96,188.35,188.3,2.92]
[1760988909099,2.65,188.34,188.3,2.92]
[1760988910505,7.4277,188.34,188.3,2.92]
[1760988910697,4.7777,188.34,188.3,2.92]
[1760988910896,7.4277,188.34,188.3,2.92]
[1760988911206,2.65,188.33,188.3,2.92]
[1760988912707,4.7777,188.34,188.3,2.92]
[1760988913902,4.7772,188.36,188.3,2.92]
[1760988914209,2.65,188.35,188.31,8.01362616]
[1760988914504,2.65,188.35,188.32,5.09362616]
[1760988914704,2.65,188.35,188.31,2.92]
[1760988914906,4.7777,188.34,188.32,5.09348544]
[1760988915102,2.78,188.33,188.27,2.68]
[1760988915292,2.78,188.33,188.21,3.20380682]
[1760988915293,2.78,188.33,188.28,7.77377191]
[1760988915496,2.78,188.33,188.29,5.09377191]
[1760988915700,2.78,188.31,188.28,2.68]
[1760988915892,2.78,188.31,188.29,5.0939006]
[1760988916108,2.78,188.31,188.28,2.68]
[1760988916294,2.78,188.31,188.29,5.0937933]
[1760988916493,2.78,188.31,188.28,2.68]
[1760988916692,2.78,188.31,188.29,5.09437743]
[1760988916894,4.7782,188.32,188.28,2.68]
[1760988917097,4.7782,188.32,188.29,7.77437743]
[1760988917301,7.5582,188.32,188.3,5.09468528]
[1760988917506,7.5582,188.32,188.29,2.68]
[1760988917714,7.5582,188.32,188.3,5.09468528]